[Event "XXVII RUS-chT Women 2020"]
[Site "Sochi"]
[Date "2020.11.27"]
[Round "8.24"]
[White "Stroganova, Karina"]
[Black "Zavivaeva, Evelina"]
[Result "1-0"]
[ECO "D20"]
[WhiteElo "1826"]
[BlackElo "1589"]
[Annotator "NA RC"]
[PlyCount "61"]
[EventDate "2020.11.19"]
[EventType "team-tourn"]
[EventCountry "RUS"]
[SourceTitle "playchess.com"]
[Source "ChessBase"]
[SourceQuality "1"]
[TimeControl "40/5400+30:1800+30"]

1. d4 {[%emt 0:00:00]} d5 {[%emt 0:00:00]} 2. c4 {[%emt 0:00:00]} dxc4 {[%emt 0:00:00]} 3. e4 {[%emt 0:00:00]} Nf6 {[%emt 0:00:00]} 4. e5 {[%emt 0:00:06]} Nd5 {[%emt 0:00:04]} 5. Bxc4 {[%emt 0:00:16]} Bf5 {[%emt 0:00:17]} 6. Nf3 {[%emt 0:03:08]} e6 {[%emt 0:13:38]} 7. O-O {[%emt 0:00:47]} Be7 {[%emt 0:00:33]} 8. Nc3 {[%emt 0:00:46]} Nb6 {[%emt 0:02:59]} 9. Bb3 {[%emt 0:00:45]} c6 {[%emt 0:05:39]} 10. Qe2 {[%emt 0:01:45]} O-O {[%emt 0:00:30]} 11. Rd1 {[%emt 0:02:11]} N8d7 {[%emt 0:09:18]} 12. Ne4 {[%emt 0:03:25]} Qc7 {[%emt 0:00:42]} 13. Bg5 {[%emt 0:01:06]} Bxg5 {[%emt 0:04:15]} 14. Nfxg5 {[%emt 0:00:31]} Rad8 {[%emt 0:05:15]} 15. Nd6 {[%emt 0:00:50]} Nc8 {[%emt 0:14:18]} 16. Nxf5 {[%emt 0:01:26]} exf5 {[%emt 0:00:40]} 17. Qh5 {[%emt 0:00:15]} h6 {[%emt 0:07:52]} 18. Nxf7 {[%emt 0:00:15]} Rxf7 {[%emt 0:00:53]} 19. Qxf7+ {[%emt 0:00:07]} Kh8 {[%emt 0:00:28]} 20. e6 {[%emt 0:00:11]} Nd6 {[%emt 0:02:36]} 21. Qe7 {[%emt 0:04:41]} Nc8 {[%emt 0:02:24]} 22. Qh4 {[%emt 0:01:22]} Nf6 {[%emt 0:00:49]} 23. Rac1 {[%emt 0:00:36]} Ne7 {[%emt 0:02:06]} 24. d5 {[%emt 0:01:58]} Nexd5 {[%emt 0:02:22]} 25. Bxd5 {[%emt 0:01:50]} Rxd5 {[%emt 0:01:42]} 26. Rxd5 {[%emt 0:01:17]} Nxd5 {[%emt 0:00:13]} 27. Re1 {[%emt 0:01:34]} Qe7 {[%emt 0:10:52]} 28. Qxe7 {[%emt 0:00:46]} Nxe7 {[%emt 0:00:06]} 29. Rd1 {[%emt 0:00:05]} Ng6 {[%emt 0:00:54]} 30. Rd7 {[%emt 0:00:07]} Kg8 {[%emt 0:00:32]} 31. Rxb7 {[%emt 0:00:26]} 1-0

[Event "XXVII RUS-chT Women 2020"]
[Site "Sochi"]
[Date "2020.11.28"]
[Round "9.20"]
[White "Mukhina, Jana"]
[Black "Lukina, Aleksandra"]
[Result "1-0"]
[ECO "C08"]
[WhiteElo "2012"]
[BlackElo "2060"]
[Annotator "NA RC"]
[PlyCount "119"]
[EventDate "2020.11.19"]
[EventType "team-tourn"]
[EventCountry "RUS"]
[SourceTitle "playchess.com"]
[Source "ChessBase"]
[SourceQuality "1"]
[TimeControl "40/5400+30:1800+30"]

1. e4 {[%emt 0:00:00]} e6 {[%emt 0:00:00]} 2. d4 {[%emt 0:00:00]} d5 {[%emt 0:00:00]} 3. Nd2 {[%emt 0:00:00]} c5 {[%emt 0:00:00]} 4. exd5 {[%emt 0:00:00]} exd5 {[%emt 0:00:00]} 5. Ngf3 {[%emt 0:00:47]} Nf6 {[%emt 0:00:00]} 6. Bb5+ {[%emt 0:03:07]} Bd7 {[%emt 0:00:08]} 7. Bxd7+ {[%emt 0:01:27]} Nbxd7 {[%emt 0:00:11]} 8. O-O {[%emt 0:00:06]} Be7 {[%emt 0:00:11]} 9. dxc5 {[%emt 0:02:16]} Nxc5 {[%emt 0:00:33]} 10. Nd4 {[%emt 0:00:03]} Qd7 {[%emt 0:02:56]} 11. N2b3 {[%emt 0:08:14]} Nce4 {[%emt 0:02:12]} 12. Qf3 {[%emt 0:07:02]} O-O {[%emt 0:00:49]} 13. Nf5 {[%emt 0:01:00]} Bd8 {[%emt 0:00:37]} 14. Be3 {[%emt 0:02:26]} Rc8 {[%emt 0:04:15]} 15. c3 {[%emt 0:07:29]} Re8 {[%emt 0:09:25]} 16. Bd4 {[%emt 0:16:01]} Qb5 {[%emt 0:10:57]} 17. Nxg7 {[%emt 0:06:04]} Rf8 {[%emt 0:10:09]} 18. Nh5 {[%emt 0:06:05]} Qc6 {[%emt 0:03:53]} 19. Nxf6+ {[%emt 0:12:13]} Bxf6 {[%emt 0:16:34]} 20. Qg4+ {[%emt 0:01:04]} Kh8 {[%emt 0:00:49]} 21. f3 {[%emt 0:00:45]} Bxd4+ {[%emt 0:04:22]} 22. Nxd4 {[%emt 0:00:19]} Nf6 {[%emt 0:00:31]} 23. Nxc6 {[%emt 0:00:37]} Nxg4 {[%emt 0:00:18]} 24. Nxa7 {[%emt 0:00:06]} Ra8 {[%emt 0:01:21]} 25. fxg4 {[%emt 0:00:28]} Rxa7 {[%emt 0:00:25]} 26. Rf5 {[%emt 0:02:31]} d4 {[%emt 0:05:05]} 27. cxd4 {[%emt 0:00:05]} Ra4 {[%emt 0:00:28]} 28. Rd5 {[%emt 0:01:05]} Rb4 {[%emt 0:00:42]} 29. b3 {[%emt 0:01:29]} Ra8 {[%emt 0:02:45]} 30. Rd7 {[%emt 0:00:47]} Kg8 {[%emt 0:02:34]} 31. h3 {[%emt 0:04:07]} b6 {[%emt 0:05:08]} 32. Kf2 {[%emt 0:04:22]} Kf8 {[%emt 0:02:09]} 33. Ke3 {[%emt 0:00:57]} Rxb3+ {[%emt 0:01:31]} 34. axb3 {[%emt 0:00:06]} Rxa1 {[%emt 0:00:03]} 35. Rb7 {[%emt 0:01:57]} Rg1 {[%emt 0:00:25]} 36. Kf3 {[%emt 0:01:43]} Rd1 {[%emt 0:00:15]} 37. Ke4 {[%emt 0:00:13]} Rg1 {[%emt 0:00:37]} 38. Rxb6 {[%emt 0:01:11]} Rxg2 {[%emt 0:00:07]} 39. Rh6 {[%emt 0:04:34]} Kg7 {[%emt 0:02:21]} 40. Rh5 {[%emt 0:00:00]} Rb2 {[%emt 0:00:00]} 41. Rb5 {[%emt 0:02:24]} Rh2 {[%emt 0:01:10]} 42. Rg5+ {[%emt 0:00:08]} Kf6 {[%emt 0:04:03]} 43. Rf5+ {[%emt 0:01:03]} Kg6 {[%emt 0:01:38]} 44. Rf3 {[%emt 0:00:09]} f6 {[%emt 0:03:06]} 45. Kd5 {[%emt 0:00:30]} h6 {[%emt 0:00:45]} 46. b4 {[%emt 0:00:28]} Rb2 {[%emt 0:00:32]} 47. Kc4 {[%emt 0:00:22]} Kf7 {[%emt 0:00:32]} 48. Rb3 {[%emt 0:00:48]} Rc2+ {[%emt 0:00:44]} 49. Kd5 {[%emt 0:00:06]} Ke7 {[%emt 0:00:29]} 50. b5 {[%emt 0:00:17]} Kd7 {[%emt 0:00:40]} 51. b6 {[%emt 0:00:11]} Kc8 {[%emt 0:00:13]} 52. b7+ {[%emt 0:00:07]} Kb8 {[%emt 0:00:03]} 53. Kd6 {[%emt 0:01:47]} Rc4 {[%emt 0:00:48]} 54. d5 {[%emt 0:00:11]} h5 {[%emt 0:02:26]} 55. gxh5 {[%emt 0:01:34]} Rh4 {[%emt 0:00:27]} 56. Kc6 {[%emt 0:00:38]} Rc4+ {[%emt 0:00:26]} 57. Kb6 {[%emt 0:05:17]} f5 {[%emt 0:02:34]} 58. d6 {[%emt 0:01:09]} Rd4 {[%emt 0:00:49]} 59. Kc5 {[%emt 0:00:54]} Rd1 {[%emt 0:00:14]} 60. h6 {[%emt 0:00:19]} 1-0